bitfinex-derivatives/quotes_ETHF0:USTF0_20241004
["timestamp","ask_amount","ask_price","bid_price","bid_amount"]
[1728012111006,0.82629922,2368.6,2368.4,0.4168]
[1728012113820,1.2146,2368.7,2368.4,0.4168]
[1728012116719,4.4224,2368.7,2368.4,0.4168]
[1728012118320,4.4224,2368.7,2368.3,0.3996]
[1728012118536,1.378,2368.6,2368.3,0.3996]
[1728012118729,1.378,2368.6,2368.0,4.101]
[1728012119026,1.378,2368.6,2368.0,4.919]
[1728012119518,1.80022,2368.6,2368.0,4.4967]
[1728012119719,0.06519653,2368.5,2368.0,4.4967]
[1728012120120,0.387,2368.4,2368.0,4.4967]
[1728012120430,0.4108,2368.3,2368.0,4.0977]
[1728012120724,0.8124,2368.3,2368.0,4.0977]
[1728012121231,0.8124,2368.3,2367.7,0.4113]
[1728012121232,3.2078,2368.1,2367.7,0.4113]
[1728012121420,0.387,2368.0,2367.8,0.402]
[1728012124434,0.417,2367.9,2367.7,0.3861]
[1728012124628,1.63045754,2367.9,2367.7,0.3861]
[1728012124830,0.8048,2367.9,2367.7,0.3861]
[1728012126629,0.8048,2367.9,2367.7,0.7924]
[1728012127525,0.92096376,2367.9,2367.7,0.7924]
[1728012128940,0.92096376,2367.9,2367.7,0.3861]
[1728012130138,1.34329376,2367.9,2367.7,0.3861]
[1728012130332,0.92096376,2367.9,2367.7,0.3861]
[1728012131327,1.34329376,2367.9,2367.7,0.3861]
[1728012131528,3.63015,2367.8,2367.5,0.4283]
[1728012131735,3.2078,2367.8,2367.5,0.4283]
[1728012131929,0.4261,2367.7,2367.5,0.4283]
[1728012141043,0.4261,2367.7,2367.5,1.9483]
[1728012145039,0.42238,2367.6,2367.5,0.4283]
[1728012145353,0.4224,2367.5,2367.3,0.7998]
[1728012145540,4.4988,2367.4,2367.3,0.4029]
[1728012145739,4.9215,2367.4,2367.3,0.4029]
[1728012149147,3.2078,2367.4,2367.3,1.9229]
[1728012149347,1.291,2367.6,2367.3,6.56934]
[1728012149551,1.291,2367.6,2367.5,1.52]
[1728012151545,1.291,2367.6,2367.4,2.3451]
[1728012155153,1.291,2367.6,2367.4,0.8251]
[1728012156746,0.4213,2367.5,2367.4,0.8251]
[1728012157452,0.4213,2367.5,2367.4,0.4284]
[1728012157651,4.4758,2367.5,2367.4,0.4284]
[1728012158352,4.0534,2367.5,2367.4,0.4284]
[1728012160763,2.09377463,2367.5,2367.4,0.4284]
[1728012162259,1.67137463,2367.5,2367.4,0.4284]
[1728012162455,1.24707463,2367.5,2367.4,0.4284]
[1728012162663,0.82577463,2367.5,2367.4,0.4284]
[1728012166463,4.4988,2367.6,2367.4,0.4284]
[1728012169460,0.82800794,2367.5,2367.4,0.4284]
[1728012169861,0.4093,2367.8,2367.4,6.1724]
[1728012170158,0.962,2368.2,2367.9,0.42233]
[1728012170466,4.4988,2368.5,2368.2,0.42227]
[1728012170467,0.098,2368.5,2368.2,0.42227]
[1728012170760,1.389,2368.7,2368.4,1.52]
[1728012170963,1.389,2368.7,2368.6,1.52]
[1728012170964,1.291,2368.7,2368.6,1.52]
[1728012171159,2.11915027,2368.7,2368.5,1.52]
[1728012171359,1.71319,2368.7,2368.5,1.52]
[1728012171667,1.71319,2368.7,2368.3,2.7485]
[1728012172668,3.23319,2368.7,2368.3,0.8113]
[1728012172858,0.4071,2368.6,2368.3,0.8113]
[1728012173058,3.2078,2368.5,2368.3,0.4171]
[1728012173260,0.42226,2368.3,2367.8,0.8111]
[1728012173456,1.52,2368.3,2367.9,0.4196]
[1728012173658,3.63009,2368.2,2367.9,0.4196]
[1728012173961,0.4223,2368.1,2367.9,0.4196]
[1728012174161,0.4223,2368.1,2367.8,0.8111]
[1728012176063,3.2078,2367.9,2367.8,0.8111]
[1728012176459,1.7303,2368.1,2367.8,0.8111]
[1728012176661,3.2078,2367.9,2367.8,0.8111]
[1728012180263,1.7303,2368.1,2367.8,0.8111]
[1728012181060,1.308,2368.1,2367.8,0.8111]
[1728012181260,1.308,2368.1,2367.8,1.23344]
[1728012181773,0.82643009,2368.0,2367.8,1.23344]
[1728012182167,0.82643009,2368.0,2367.8,0.8111]
[1728012182772,0.82643009,2368.0,2367.8,1.23344]
[1728012183169,0.82643009,2368.0,2367.8,8.75664]
[1728012183368,4.5158,2368.2,2367.8,8.75664]
[1728012183669,0.82629549,2368.1,2367.8,4.53344]
[1728012183969,0.82629549,2368.1,2367.8,1.23345]
[1728012184272,0.82629549,2368.1,2367.8,0.8111]
[1728012184974,0.82629549,2368.1,2367.8,1.23345]
[1728012185474,0.82629549,2368.1,2367.8,0.8111]
[1728012188772,4.5158,2368.2,2367.8,0.8111]
[1728012188970,0.4223,2368.1,2367.7,3.3]
[1728012189276,0.3966,2368.0,2367.7,3.3]
[1728012189474,0.3966,2368.0,2367.8,0.4238]
[1728012190274,0.8207,2368.0,2367.8,0.4238]
[1728012191371,1.24301,2368.0,2367.8,0.4238]
[1728012192876,0.42234,2367.9,2367.5,3.2078]
[1728012193275,0.42234,2367.9,2367.5,3.6302]
[1728012193670,0.42234,2367.9,2367.5,3.2078]
[1728012195477,1.35907285,2368.0,2367.5,3.63019]
[1728012195784,1.35907285,2368.0,2367.6,1.52]
[1728012195977,1.35907285,2368.0,2367.7,0.4146]
[1728012199973,0.93675285,2368.0,2367.7,0.4146]
[1728012201387,0.93675285,2368.0,2367.7,0.8427]
[1728012201686,1.35907285,2368.0,2367.7,0.8427]
[1728012202788,4.56687285,2368.0,2367.7,0.8427]
[1728012203590,0.93675285,2368.0,2367.7,0.8427]
[1728012203791,6.08688285,2368.0,2367.7,0.4146]
[1728012204492,4.14455285,2368.0,2367.7,0.4146]
[1728012205588,4.14455285,2368.0,2367.7,0.8043]
[1728012207484,2.0887,2368.0,2367.7,1.22665]
[1728012207684,2.0887,2368.0,2367.8,0.3891]
[1728012211197,0.82723032,2367.9,2367.8,0.3891]
[1728012219094,2.0887,2368.0,2367.8,0.3891]
[1728012219495,0.82910197,2367.9,2367.8,0.3891]
[1728012220386,2.0887,2368.0,2367.8,0.3891]
[1728012221104,0.82909477,2367.9,2367.8,0.3891]
[1728012234109,0.82909477,2367.9,2367.8,12.55465]
[1728012234315,1.366,2368.4,2367.8,12.1323]
[1728012234507,0.82931064,2368.3,2368.1,0.42229]
[1728012234709,0.82931064,2368.3,2368.2,1.2183]
[1728012236218,1.268,2368.4,2368.2,1.2183]
[1728012237521,1.239,2368.4,2368.2,1.2183]
[1728012240617,2.16883696,2368.5,2368.2,1.2183]
[1728012240817,2.59105696,2368.5,2368.2,1.2183]
[1728012241309,2.16883696,2368.5,2368.2,1.2183]
[1728012241509,0.82851274,2368.4,2368.2,1.2183]
[1728012242016,2.16883696,2368.5,2368.2,1.2183]
[1728012242212,2.0518,2368.5,2368.2,1.2183]
[1728012244422,4.7278,2368.4,2367.7,3.2078]
[1728012244723,4.7278,2368.4,2367.4,1.10518368]
[1728012244724,1.52,2368.0,2367.8,0.7785]
[1728012245112,0.3936,2367.9,2367.8,0.7785]
[1728012247932,5.1501,2368.1,2367.8,0.7785]
[1728012248222,0.3943,2368.0,2367.8,0.7785]
[1728012248927,0.3943,2368.0,2367.6,1.94238]
[1728012248928,0.42236,2367.8,2367.3,0.42244]
[1728012249124,1.94236,2367.8,2367.4,1.2455]
[1728012249420,1.22393434,2367.7,2367.4,1.2455]
[1728012251526,1.22393434,2367.7,2367.5,0.4224]
[1728012251725,0.3963,2367.7,2367.6,1.52]
[1728012254825,0.82767119,2367.8,2367.6,1.94238]
[1728012255233,0.82767119,2367.8,2367.7,0.414]
[1728012256635,1.6461,2367.9,2367.7,0.414]
[1728012257934,2.49423,2367.9,2367.7,0.414]
[1728012258333,4.01423,2367.9,2367.5,1.52]
[1728012258528,4.01423,2367.9,2367.5,1.9088]
[1728012259329,4.01423,2367.9,2367.5,0.3888]
[1728012260038,3.5919,2367.9,2367.5,0.3888]
[1728012263734,4.01423,2367.9,2367.5,0.3888]
[1728012264834,1.52,2367.7,2367.4,2.3641]
[1728012265033,0.3955,2367.6,2367.4,2.3641]
[1728012265232,0.8168,2367.6,2367.4,2.3641]
[1728012273637,0.8168,2367.6,2367.2,2.33185]
[1728012274242,0.8168,2367.6,2367.3,0.42244]
[1728012274435,0.8168,2367.6,2367.4,0.3879]
[1728012278243,0.8168,2367.6,2367.4,2.33032]
[1728012278448,0.8168,2367.6,2367.5,0.3861]
[1728012278647,0.8168,2367.6,2367.5,0.7994]
[1728012283648,0.4213,2367.6,2367.5,0.7994]
[1728012284853,4.96614,2367.9,2367.5,6.5434]
[1728012285148,0.4011,2367.8,2367.5,2.3194]
[1728012286151,0.4011,2367.8,2367.5,0.7994]
[1728012287054,0.42238,2367.7,2367.4,0.3879]
[1728012287257,0.3938,2367.6,2367.4,0.3879]
[1728012287751,0.427,2367.5,2367.4,0.3879]
[1728012287946,1.25386316,2367.5,2367.4,0.3879]
[1728012288146,0.427,2367.5,2367.4,0.3879]
[1728012288347,1.25386316,2367.5,2367.4,0.3879]
[1728012294153,0.427,2367.5,2367.4,0.3879]
[1728012302260,1.25485975,2367.5,2367.4,0.3879]
[1728012302461,10.62905975,2367.5,2367.0,0.42248]
[1728012302656,0.82785975,2367.4,2367.0,1.1982]
[1728012302960,2.755,2367.3,2367.0,1.1982]
[1728012303165,1.25075975,2367.2,2367.0,1.1982]
[1728012303367,1.66595975,2367.2,2367.0,0.8088]
[1728012303660,1.66595975,2367.2,2366.9,1.52]
[1728012303661,5.47512975,2367.1,2366.7,0.4139]
[1728012303963,5.47512975,2367.1,2366.7,1.2448]
[1728012303964,2.77032975,2367.1,2366.7,1.2448]
[1728012304159,1.25034975,2367.0,2366.7,1.2448]
[1728012304555,0.3919,2366.9,2366.7,1.2448]
[1728012304752,1.21975975,2366.9,2366.7,1.2448]
[1728012304953,0.82785975,2366.8,2366.7,1.2448]
[1728012305157,1.24235975,2366.8,2366.5,1.52]
[1728012305355,1.24235975,2366.8,2366.5,2.7512]
[1728012305557,1.24235975,2366.8,2366.5,3.17378]
[1728012306673,1.24235975,2366.8,2366.0,0.212]
[1728012306674,4.7278,2366.6,2366.0,0.212]
[1728012306857,1.52,2366.3,2366.1,0.39]
[1728012309359,1.52,2366.3,2366.0,0.4185]
[1728012309360,5.1494,2366.3,2366.0,0.4185]
[1728012309563,1.94265,2366.2,2365.6,0.4208]
[1728012309760,1.52,2365.8,2365.6,1.2169]
[1728012309967,4.7278,2365.9,2365.6,1.2169]
[1728012310166,1.52,2365.8,2365.1,3.2078]
[1728012310370,1.52,2365.6,2365.2,0.3887]
[1728012310576,1.236,2365.5,2365.2,0.3887]
[1728012311272,2.756,2365.5,2365.2,0.3887]
[1728012311467,3.1622,2365.5,2365.2,0.3887]
[1728012312265,1.52,2365.3,2365.2,0.3887]
[1728012313564,3.3,2365.4,2365.2,0.3887]
[1728012313874,3.3,2365.4,2365.1,3.2078]
[1728012314563,1.236,2365.3,2365.1,3.2078]
[1728012315267,0.4062,2365.5,2365.1,3.2078]
[1728012315468,0.4062,2365.5,2365.1,3.63062]
[1728012315665,1.236,2365.4,2365.1,3.63062]
[1728012315870,1.236,2365.4,2365.2,0.42281]
[1728012316465,1.236,2365.4,2365.1,3.2078]
[1728012316466,1.236,2365.4,2365.1,3.63062]
[1728012317470,1.236,2365.4,2365.1,3.2078]
[1728012317770,4.4438,2365.6,2365.2,7.528]
[1728012317971,4.4438,2365.6,2365.3,0.83808]
[1728012318168,4.4438,2365.6,2365.4,0.4108]
[1728012318367,4.4438,2365.6,2365.4,0.83358]
[1728012318562,3.2078,2365.6,2365.4,0.83358]
[1728012318865,0.21730091,2366.0,2365.4,0.83358]
[1728012318866,1.236,2365.8,2365.4,0.83358]
[1728012319674,1.236,2365.8,2365.4,0.4108]
[1728012319966,0.11930091,2366.0,2365.4,3.7108]
[1728012320174,1.236,2365.9,2365.5,0.42276]
[1728012320963,1.236,2365.9,2365.4,3.7108]
[1728012321164,1.236,2365.9,2365.4,4.13357]
[1728012323967,1.236,2365.9,2365.4,3.7108]
[1728012324382,1.236,2365.9,2365.4,4.13357]
[1728012326165,3.74776383,2366.1,2365.4,4.13357]
[1728012326377,1.236,2366.0,2365.4,4.13357]
[1728012327476,1.236,2366.0,2365.5,0.42276]
[1728012328475,1.236,2366.0,2365.4,4.13357]
[1728012330981,1.236,2366.0,2365.4,0.83357]
[1728012331176,3.74775383,2366.1,2365.4,0.83357]
[1728012331379,1.234,2365.9,2365.4,0.83357]
[1728012335482,1.52,2365.8,2365.4,0.83357]
[1728012338784,1.9256,2365.8,2365.4,0.83357]
[1728012341883,1.9256,2365.8,2365.5,0.42275]
[1728012342093,1.9256,2365.8,2365.4,0.4108]
[1728012342292,1.9256,2365.8,2365.4,0.83357]
[1728012343094,3.1596,2365.8,2365.4,0.83357]
[1728012343896,3.1596,2365.8,2365.5,0.42276]
[1728012344097,3.1596,2365.8,2365.6,0.3976]
[1728012345903,0.4056,2365.8,2365.6,0.3976]
[1728012346109,1.52,2366.0,2365.7,0.3985]
[1728012346403,3.1777,2366.0,2365.8,0.4287]
[1728012347302,1.6577,2366.0,2365.8,0.4287]
[1728012348804,0.4237,2366.0,2365.8,0.4287]
[1728012349001,1.6577,2366.0,2365.8,0.4287]
[1728012349710,0.4237,2366.0,2365.8,0.4287]
[1728012350103,0.3948,2366.2,2365.9,4.2264]
[1728012350307,1.234,2366.3,2366.2,0.42263]
[1728012350308,0.4166,2366.3,2366.2,0.42263]
[1728012350510,1.6254,2366.5,2366.2,0.42263]
[1728012350810,0.808,2366.5,2366.3,0.3994]
[1728012352410,0.4166,2366.5,2366.3,0.3994]
[1728012352616,0.4166,2366.5,2366.3,0.82201]
[1728012353306,0.4166,2366.5,2366.3,2.34201]
[1728012353504,1.6321,2366.7,2366.4,0.42259]
[1728012353714,1.6321,2366.7,2366.5,1.52]
[1728012354010,1.6321,2366.7,2366.4,1.9088]
[1728012355509,0.3981,2366.7,2366.4,1.9088]
[1728012355716,0.7936,2366.8,2366.4,1.9088]
[1728012356013,0.7936,2366.8,2366.4,2.33139]
[1728012356210,0.7936,2366.8,2366.4,1.9088]
[1728012356405,0.7936,2366.8,2366.5,1.52]
[1728012357512,0.7936,2366.8,2366.6,3.2078]
[1728012361028,2.3136,2366.8,2366.3,0.3994]
[1728012361318,1.52,2366.4,2366.2,0.398]
[1728012361615,2.79362,2366.3,2366.1,4.148]
[1728012361821,3.21772,2366.3,2366.1,4.148]
[1728012362608,0.42263,2366.2,2366.1,4.148]
[1728012362924,0.42266,2366.1,2365.6,3.63053]
[1728012363109,1.94266,2366.1,2365.7,0.8295]
[1728012363622,3.72266,2366.1,2365.7,0.8295]
[1728012364118,3.72266,2366.1,2365.7,1.25222]
[1728012365221,3.3,2366.1,2365.7,1.25222]
[1728012365914,3.3,2366.1,2365.8,0.4227]
[1728012367319,3.3,2366.1,2365.7,1.25221]
[1728012373928,1.231,2366.2,2365.8,0.4227]
[1728012376015,1.231,2366.2,2365.7,1.25222]
[1728012377321,1.231,2366.2,2365.7,0.8295]
[1728012377731,1.231,2366.2,2365.8,0.4227]
[1728012379223,1.231,2366.2,2365.7,1.25222]
[1728012379524,1.231,2366.2,2365.8,0.42269]
[1728012385726,1.52,2366.1,2365.8,0.42269]
[1728012386830,0.3968,2366.0,2365.8,0.42269]
[1728012390432,0.3968,2366.0,2365.7,1.25221]
[1728012391331,0.3968,2366.0,2365.7,0.8295]
[1728012391530,0.3968,2366.0,2365.8,0.4227]
[1728012392128,0.3968,2366.0,2365.8,0.42047368]
[1728012400937,0.3968,2366.0,2365.9,0.42269]
[1728012401540,0.3968,2366.0,2365.8,0.4227]
[1728012406836,0.3968,2366.0,2365.7,1.25221]
[1728012407236,0.3968,2366.0,2365.7,2.35848033]
[1728012407838,0.81948,2366.0,2365.7,1.93577033]
[1728012408039,0.3911,2365.9,2365.7,1.93577033]
[1728012411140,1.9111,2365.9,2365.7,0.8295]
[1728012411353,1.9111,2365.9,2365.7,1.25222]
[1728012411645,1.9111,2365.9,2365.7,0.8295]
[1728012417340,1.9111,2365.9,2365.7,1.25222]
[1728012419660,1.52,2365.9,2365.7,1.25222]
[1728012420155,1.52,2365.9,2365.8,0.42271]
[1728012420350,0.3968,2366.0,2365.8,0.42271]
[1728012420554,0.3968,2366.0,2365.7,0.8295]
[1728012420754,0.3968,2366.0,2365.7,1.25222]
[1728012421361,0.3968,2366.0,2365.7,2.35849033]
[1728012422859,0.3968,2366.0,2365.7,1.25222]
[1728012423764,0.3968,2366.0,2365.7,2.35849033]
[1728012423949,0.3968,2366.0,2365.7,1.25222]
[1728012424962,0.3968,2366.0,2365.8,0.4227]
[1728012425153,2.33947,2366.0,2365.7,1.93577033]
[1728012425353,1.9168,2366.0,2365.7,0.8295]
[1728012425554,0.4169,2365.9,2365.7,0.8295]
[1728012425864,0.4247,2365.8,2365.7,0.42272]
[1728012426562,0.4247,2365.8,2365.6,1.50427033]
[1728012426860,1.94273,2365.7,2365.4,1.10627033]
[1728012427053,1.52,2365.5,2365.3,1.50427033]
[1728012427257,0.4247,2365.4,2365.3,0.398]
[1728012427456,0.8442,2365.4,2365.3,0.398]
[1728012427957,1.226,2365.7,2365.3,0.398]
[1728012428257,1.226,2365.7,2365.4,0.42277]
[1728012428258,0.4195,2365.6,2365.4,0.42277]
[1728012428461,0.4195,2365.6,2365.5,0.3952]
[1728012429559,0.4195,2365.6,2365.5,0.8006]
[1728012433667,0.4247,2365.8,2365.5,6.5478]
[1728012433961,2.844,2366.0,2365.6,0.42274]
[1728012434163,2.746,2366.0,2365.7,0.422]
[1728012434764,1.52,2365.9,2365.7,0.422]
[1728012434965,0.393,2365.8,2365.7,0.422]
[1728012435271,0.796,2365.8,2365.7,0.422]
[1728012436156,0.12029051,2366.2,2365.7,0.422]
[1728012436363,0.403,2366.1,2365.8,0.4227]
[1728012436660,0.403,2366.1,2365.7,0.422]
[1728012436661,0.403,2366.1,2365.9,0.8143]
[1728012436867,1.923,2366.1,2365.9,0.8143]
[1728012437168,1.52,2366.0,2365.9,0.4258]
[1728012437570,0.403,2366.1,2365.9,0.4258]
[1728012437762,1.923,2366.1,2365.9,0.4258]
[1728012437973,1.923,2366.1,2366.0,0.4001]
[1728012440966,0.403,2366.1,2366.0,0.4001]
[1728012442768,0.403,2366.1,2366.0,1.9201]
[1728012442967,0.3997,2366.4,2366.0,6.1465]
[1728012443168,0.3914,2366.4,2366.1,1.9238]
[1728012443368,0.3914,2366.6,2366.5,0.42258]
[1728012443570,0.4215,2366.9,2366.4,1.52]
[1728012443772,1.52,2366.6,2366.1,4.31407033]
[1728012443968,1.52,2366.6,2366.2,0.82753]
[1728012444267,4.1187,2366.9,2366.2,0.4049]
[1728012444268,0.3994,2366.5,2366.2,0.4049]
[1728012444473,1.52,2366.4,2366.0,4.57066]
[1728012444779,1.52,2366.4,2366.0,0.4049]
[1728012444972,1.52,2366.4,2366.1,0.42264]
[1728012448178,1.52,2366.4,2366.0,0.4049]
[1728012448374,1.52,2366.4,2366.1,0.42265]
[1728012448579,1.52,2366.3,2365.9,0.42268]
[1728012448972,0.419,2366.2,2365.9,0.42268]
[1728012449171,0.419,2366.2,2366.0,0.42266]
[1728012450481,1.22979,2366.5,2366.1,0.42265]
[1728012450482,1.52,2366.4,2366.1,0.42265]
[1728012450677,1.9382,2366.4,2366.1,0.42265]
[1728012450881,1.9382,2366.4,2366.0,1.94266]
[1728012451282,1.9382,2366.4,2366.0,0.42266]
[1728012453179,2.3608,2366.4,2366.0,0.42266]
[1728012453782,0.42267,2366.0,2365.4,0.42277]
[1728012453991,1.52,2365.7,2365.4,0.42277]
[1728012454580,0.3989,2365.6,2365.4,0.42277]
[1728012454986,0.3989,2365.6,2365.4,4.64997]
[1728012455180,1.234,2365.8,2365.4,5.7472]
[1728012455389,0.3989,2365.9,2365.7,0.42272]
[1728012457582,0.3989,2365.9,2365.7,0.83092]
[1728012458577,0.3989,2365.9,2365.8,0.4153]
[1728012459088,0.42271,2365.8,2365.4,0.3943]
[1728012459390,1.52,2365.5,2365.4,0.3943]
[1728012460381,1.52,2365.5,2365.2,0.4135]
[1728012460691,1.52,2365.3,2365.2,0.4135]
[1728012461288,1.52,2365.5,2365.2,0.4135]
[1728012462484,1.52,2365.3,2365.1,0.3943]
[1728012462981,0.4025,2365.2,2365.1,0.3943]
[1728012463785,0.4025,2365.2,2364.9,4.04316]
[1728012463985,1.2183,2365.2,2364.9,4.47216]
[1728012464988,1.2183,2365.2,2365.0,0.42285]
[1728012465795,1.2183,2365.2,2364.9,4.47216]
[1728012470290,1.2183,2365.2,2364.9,4.0493]
[1728012470488,2.7383,2365.2,2364.9,4.0493]
[1728012471799,2.7383,2365.2,2364.9,0.8415]
[1728012471992,2.7383,2365.2,2364.9,3.2078]
[1728012472198,2.7383,2365.2,2364.9,4.0316]
[1728012473494,1.52,2365.0,2364.9,3.2078]
[1728012473800,1.52,2365.0,2364.5,3.63074]
[1728012473994,1.52,2364.8,2364.5,3.2078]
[1728012474797,1.52,2364.8,2364.5,3.63074]
[1728012475994,1.52,2364.8,2364.4,4.0316]
[1728012476397,1.52,2364.6,2364.4,4.0316]
[1728012476797,0.3962,2364.5,2364.4,4.0316]
[1728012477104,1.9162,2364.5,2364.4,3.2078]
[1728012478298,1.9162,2364.5,2364.4,3.63076]
[1728012479787,0.3962,2364.5,2364.4,3.63076]
[1728012480401,2.822,2364.6,2364.5,0.42294]
[1728012480696,2.822,2364.6,2364.5,0.81054]
[1728012480901,2.822,2364.6,2364.5,1.23244]
[1728012481205,2.822,2364.6,2364.5,0.8095]
[1728012481893,3.2503,2364.6,2364.5,0.8095]
[1728012486999,7.4791,2364.6,2364.3,0.424]
[1728012487210,1.7303,2364.6,2364.4,0.7906]
[1728012487398,1.52,2364.5,2364.4,0.7906]
[1728012487998,2.822,2364.5,2364.4,0.7906]
[1728012491106,1.302,2364.6,2364.4,0.7906]
[1728012492297,1.52,2364.7,2364.4,0.7906]
[1728012492502,2.859,2364.7,2364.4,0.7906]
[1728012493906,1.52,2364.6,2364.4,0.7906]
[1728012494404,0.3932,2364.5,2364.4,0.7906]
[1728012496405,1.9132,2364.5,2364.4,0.7906]
[1728012496611,1.9132,2364.5,2364.1,3.2078]
[1728012496612,2.76374,2364.5,2364.1,3.2078]
[1728012496914,1.52,2364.2,2364.1,3.2078]
[1728012497309,0.8208,2364.5,2364.1,3.2078]
[1728012497511,1.52,2364.4,2364.2,1.22368]
[1728012501125,1.52,2364.4,2364.2,0.8007]
[1728012504719,1.52,2364.4,2364.2,1.22368]
[1728012505114,0.3932,2364.5,2364.2,2.3207]
[1728012505409,1.339,2364.5,2364.4,0.42296]
[1728012505816,1.339,2364.5,2364.3,0.42296]
[1728012507421,3.2557,2364.7,2364.3,0.42296]
[1728012507815,1.52,2364.6,2364.3,0.42296]
[1728012508420,1.52,2364.6,2364.4,0.4231]
[1728012509325,1.52,2364.5,2364.4,0.4231]
[1728012510319,1.52,2364.5,2364.2,0.8007]
[1728012510528,0.4253,2364.4,2364.2,1.2238]
[1728012510725,0.4253,2364.4,2364.2,1.64679]
[1728012511519,0.4253,2364.4,2364.2,1.2238]
[1728012512624,0.8116,2364.4,2364.2,1.64679]
[1728012512921,0.8116,2364.4,2364.2,1.2238]
[1728012513525,0.4253,2364.4,2364.2,1.64679]
[1728012513923,0.4253,2364.4,2364.2,1.2238]
[1728012517429,1.52,2364.3,2364.2,0.3921]
[1728012525746,0.4253,2364.4,2364.2,0.3921]
[1728012525941,0.4253,2364.4,2364.2,1.92154255]
[1728012527149,1.52,2364.3,2364.2,0.3921]
[1728012527342,0.4253,2364.4,2364.2,0.3921]
[1728012527541,0.4253,2364.4,2364.3,0.42297]
[1728012527740,0.3863,2364.6,2364.4,0.42294]
[1728012527948,1.618,2364.9,2364.6,0.42291]
[1728012528143,0.4065,2364.8,2364.6,0.42291]
[1728012528354,0.4065,2364.8,2364.7,0.4243]
[1728012528743,1.9265,2364.8,2364.7,0.4243]
[1728012529752,6.1553,2364.8,2364.4,4.31426255]
[1728012529951,1.94293,2364.6,2364.3,1.10646255]
[1728012530149,1.52,2364.4,2364.2,1.10646255]
[1728012530546,1.52,2364.4,2364.1,5.51956255]
[1728012530851,1.67235,2364.5,2364.1,5.51956255]
[1728012530852,1.52,2364.2,2364.1,5.51956255]
[1728012531045,1.52,2364.2,2364.1,7.14027562]
[1728012531444,1.52,2364.2,2364.1,5.51956255]
[1728012531842,1.52,2364.2,2364.1,5.94257255]
[1728012532047,1.52,2364.2,2364.1,4.31426255]
[1728012532257,1.52,2364.2,2364.1,4.04781]
[1728012532551,1.52,2364.2,2364.1,3.6248]
[1728012532855,1.52,2364.2,2364.1,3.2078]
[1728012533347,1.9133,2364.2,2364.1,3.2078]
[1728012540556,6.1429,2364.2,2363.9,0.84004]
[1728012540758,1.9124,2364.1,2364.0,0.42303]
[1728012541354,1.7243,2364.2,2364.0,0.42303]
[1728012541554,0.3933,2364.2,2364.1,0.4111]
[1728012543158,0.3933,2364.2,2364.1,0.83411]
[1728012544359,0.3933,2364.2,2364.1,0.4111]
[1728012544757,0.3933,2364.2,2363.9,0.84003]
[1728012544954,1.52,2364.1,2363.9,1.25553]
[1728012547168,1.52,2364.1,2364.0,0.42303]
[1728012547359,0.3933,2364.2,2363.9,0.8325]
[1728012547659,3.2443,2364.2,2364.0,0.42302]
[1728012547859,3.2443,2364.2,2363.9,1.25554]
[1728012548063,1.52,2364.1,2363.9,1.25554]
[1728012551269,1.52,2364.1,2363.9,0.8325]
[1728012551876,1.52,2364.1,2363.9,1.25554]
[1728012554172,1.52,2364.1,2363.9,0.8325]
[1728012554367,1.52,2364.1,2363.8,0.84315]
[1728012554674,1.52,2364.1,2364.0,0.42303]
[1728012555264,1.9133,2364.2,2364.0,0.42303]
[1728012555469,0.3933,2364.2,2364.1,0.42301]
[1728012555775,0.3933,2364.2,2364.0,0.42301]
[1728012555967,1.9133,2364.2,2364.0,0.42301]
[1728012556167,1.9133,2364.2,2364.1,0.4039]
[1728012557173,1.9133,2364.2,2363.9,0.42303]
[1728012557372,1.9133,2364.2,2363.9,0.83423]
[1728012558571,1.9133,2364.2,2364.0,0.42303]
[1728012558972,1.9133,2364.2,2363.9,0.83424]
[1728012559174,3.2313,2364.2,2364.0,0.42303]
[1728012559477,3.2313,2364.2,2363.9,0.83424]
[1728012559672,3.2313,2364.2,2363.9,0.4112]
[1728012559976,3.2313,2364.2,2363.9,0.83424]
[1728012560368,3.2313,2364.2,2363.9,0.4112]
[1728012560678,3.2313,2364.2,2363.9,0.83424]
[1728012561078,1.7113,2364.2,2364.0,0.42303]
[1728012562074,0.3933,2364.2,2364.0,0.42303]
[1728012562668,0.3933,2364.2,2363.9,0.4112]
[1728012563069,2.838,2364.3,2363.9,0.4112]
[1728012563272,0.098,2364.6,2364.2,1.52]
[1728012563573,1.7217,2364.7,2364.4,0.42295]
[1728012563776,1.52,2364.6,2364.4,0.42295]
[1728012564871,1.52,2364.5,2364.3,1.2024]
[1728012565278,0.4037,2364.4,2364.3,1.2024]
[1728012570687,0.4037,2364.4,2364.3,1.62537]
[1728012571174,2.838,2364.5,2364.3,1.62537]
[1728012571570,1.52,2364.5,2364.3,1.62537]
[1728012572382,1.52,2364.5,2364.3,1.2024]
[1728012574987,1.94296,2364.5,2364.0,0.42302]
[1728012575188,1.52,2364.3,2364.0,1.24202]
[1728012575480,1.52,2364.3,2364.1,0.42301]
[1728012575784,0.3973,2364.2,2364.1,0.42301]
[1728012576879,0.3973,2364.2,2364.0,0.4247]
[1728012577081,0.3973,2364.2,2363.9,1.51456255]